bitfinex/quotes_ETHUSD_20241119
["timestamp","ask_amount","ask_price","bid_price","bid_amount"]
[1732044685587,3.19629,3128.7,3128.1,0.7802]
[1732044685808,3.19639,3128.6,3128.1,1.09988]
[1732044686019,0.319639,3128.5,3128.1,0.7802]
[1732044686227,3.19658,3128.4,3128.1,0.7802]
[1732044686523,0.319639,3128.5,3128.1,0.7802]
[1732044686692,3.19657,3128.4,3127.8,1.1503]
[1732044686881,3.5481729,3128.4,3127.8,1.1503]
[1732044687279,3.19689,3128.1,3127.8,0.8306]
[1732044687587,0.319689,3128.0,3127.5,1.15034]
[1732044687992,3.19703,3127.9,3127.5,0.8306]
[1732044688191,3.19721,3127.8,3127.5,0.8306]
[1732044688396,3.19703,3127.9,3127.5,0.8306]
[1732044688623,3.19703,3127.9,3127.2,0.8306]
[1732044688926,3.19723,3127.7,3127.2,0.8306]
[1732044689136,3.19723,3127.7,3127.2,1.15037]
[1732044689720,0.319703,3127.8,3127.2,1.15037]
[1732044689721,0.319703,3127.8,3127.2,0.8306]
[1732044689927,3.19735,3127.6,3127.2,0.8306]
[1732044691713,3.19713,3127.8,3127.2,0.8306]
[1732044692017,3.19734,3127.6,3127.2,0.8306]
[1732044692226,0.319734,3127.6,3127.2,0.8306]
[1732044692532,0.1648,3128.0,3126.9,0.7589]
[1732044692533,3.1978,3127.2,3126.9,0.7589]
[1732044692829,3.19802,3127.0,3126.6,0.7589]
[1732044693342,3.1978,3127.2,3126.6,1.07873]
[1732044693812,6.39564,3127.2,3126.6,1.07873]
[1732044694132,3.19738,3127.6,3126.9,0.31979]
[1732044694538,3.19743,3127.6,3126.9,0.63959]
[1732044694740,3.565715,3127.5,3126.9,0.31979]
[1732044695032,0.368195,3127.5,3126.6,0.7589]
[1732044695245,3.19804,3127.0,3126.4,0.31985]
[1732044696071,3.36265,3127.1,3126.3,0.7621]
[1732044696072,3.19843,3126.6,3126.3,0.7621]
[1732044696272,0.1648,3127.1,3126.0,0.31989]
[1732044696273,0.1648,3127.1,3126.1,0.7621]
[1732044696441,3.19842,3126.6,3126.1,0.7621]
[1732044696791,0.319842,3126.5,3126.1,0.7621]
[1732044696950,0.319842,3126.5,3126.1,1.08198]
[1732044697284,0.319842,3126.5,3126.1,0.7621]
[1732044697579,0.319842,3126.5,3126.1,1.08198]
[1732044697894,3.19833,3126.7,3126.1,1.08198]
[1732044698254,3.19821,3126.8,3126.1,1.08198]
[1732044698255,3.19821,3126.8,3126.1,1.40186]
[1732044698457,3.19836,3126.6,3126.1,0.7621]
[1732044698659,3.518151,3126.7,3126.1,0.7621]
[1732044698861,3.19833,3126.7,3126.1,0.7621]
[1732044699351,3.19833,3126.7,3126.1,1.08198]
[1732044699568,3.19823,3126.8,3126.2,0.31987]
[1732044699793,0.1648,3127.1,3126.1,0.7621]
[1732044699794,3.19848,3126.5,3126.1,0.7621]
[1732044700013,3.19848,3126.5,3125.8,1.08971]
[1732044700291,3.19848,3126.5,3125.8,0.7698]
[1732044700292,3.19862,3126.4,3125.8,0.7698]
[1732044700492,3.19862,3126.4,3125.8,1.08971]
[1732044700493,0.319848,3126.4,3125.8,1.08971]
[1732044700997,0.319848,3126.4,3125.9,0.3199]
[1732044701355,3.518418,3126.4,3125.8,1.08971]
[1732044701576,0.3518328,3126.3,3125.8,1.08971]
[1732044702500,0.3518328,3126.3,3125.9,0.3199]
[1732044702650,3.36326,3126.5,3125.8,1.08971]
[1732044702991,3.19857,3126.4,3125.8,1.08971]
[1732044703219,0.336337,3126.3,3125.8,1.08971]
[1732044703503,0.336337,3126.3,3125.9,0.3199]
[1732044703711,0.07836024,3126.7,3126.2,0.31987]
[1732044703851,3.0,3126.9,3126.3,0.31985]
[1732044704196,3.0,3126.9,3126.4,0.7787]
[1732044704353,3.0,3126.7,3126.1,0.7787]
[1732044704565,3.19843,3126.6,3126.1,0.7787]
[1732044704809,3.0,3126.7,3126.2,0.31987]
[1732044704972,0.619818,3126.7,3126.4,0.31985]
[1732044705173,6.19807,3126.9,3126.3,0.31986]
[1732044705884,3.1648,3127.1,3126.4,0.31984]
[1732044706063,6.36272,3127.1,3126.4,0.31984]
[1732044706269,3.0,3126.9,3126.4,0.31984]
[1732044706469,0.1648,3127.1,3126.3,0.31985]
[1732044706907,3.19822,3126.8,3126.2,0.31987]
[1732044707305,6.39647,3126.8,3126.2,0.31987]
[1732044707609,3.0,3126.9,3126.3,0.31986]
[1732044707765,3.19834,3126.7,3126.1,0.7787]
[1732044708172,3.19907,3125.9,3125.8,0.8202]
[1732044708370,3.19903,3126.0,3125.4,0.8202]
[1732044708570,3.19879,3126.2,3125.5,0.31994]
[1732044709194,3.19879,3126.2,3125.6,0.31993]
[1732044710082,3.19861,3126.4,3125.8,0.31991]
[1732044710281,3.36321,3126.6,3125.9,0.8121]
[1732044710488,0.651449,3126.8,3126.2,0.31986]
[1732044710764,0.3849649,3126.7,3126.2,0.31986]
[1732044710921,0.3849649,3126.7,3126.3,1.13196]
[1732044711888,0.3849649,3126.7,3126.3,0.8121]
[1732044712089,0.35831549,3126.6,3126.3,0.8121]
[1732044712917,0.35831549,3126.6,3126.0,0.31989]
[1732044712918,0.35831549,3126.6,3126.0,0.7635]
[1732044713272,0.35831549,3126.6,3126.1,0.31988]
[1732044713517,0.35831549,3126.6,3126.0,0.7635]
[1732044714110,0.1648,3126.6,3125.7,0.31992]
[1732044714490,3.19862,3126.4,3125.8,0.31991]
[1732044714691,0.319862,3126.3,3125.8,0.31991]
[1732044716111,3.0,3126.5,3126.0,0.31989]
[1732044716321,6.19828,3126.7,3126.1,0.31988]
[1732044716491,6.534581,3126.7,3126.1,0.31988]
[1732044717018,6.534581,3126.7,3125.9,1.43219]
[1732044717420,3.19852,3126.5,3125.9,1.11229]
[1732044717722,3.19852,3126.5,3125.9,1.43219]
[1732044717905,6.39706,3126.5,3125.9,1.11229]
[1732044718227,3.19852,3126.5,3125.9,1.11229]
[1732044718439,3.61573991,3126.4,3125.9,0.7924]
[1732044718733,0.41717991,3126.4,3125.9,0.7924]
[1732044719092,0.41717991,3126.4,3125.9,1.1123]
[1732044720143,3.61575991,3126.4,3125.9,0.7924]
[1732044720344,0.41717991,3126.4,3126.1,0.31988]
[1732044720523,6.19832,3126.7,3125.9,1.1123]
[1732044720524,3.0,3126.5,3125.9,1.1123]
[1732044720698,3.0,3126.5,3126.0,0.31989]
[1732044720911,0.619836,3126.4,3126.0,0.31989]
[1732044721444,0.619836,3126.4,3125.9,1.1123]
[1732044721812,0.619836,3126.4,3125.9,1.4322]
[1732044722009,3.36293,3126.9,3126.2,0.31987]
[1732044722213,3.0,3126.8,3125.9,0.7924]
[1732044722512,6.39682,3126.6,3125.9,1.1123]
[1732044722711,3.19847,3126.5,3125.9,1.1123]
[1732044723357,3.336293,3126.8,3125.9,0.7924]
[1732044723666,3.3629,3126.9,3125.9,0.7924]
[1732044723818,3.19893,3126.1,3125.6,0.7763]
[1732044724121,0.639777,3126.0,3125.6,0.7763]
[1732044724321,3.36342,3126.4,3125.6,0.7763]
[1732044724526,3.19862,3126.4,3125.8,0.31991]
[1732044724731,0.319862,3126.3,3125.9,0.31989]
[1732044724927,3.19848,3126.5,3125.9,0.3199]
[1732044725228,3.19864,3126.4,3126.0,0.792]
[1732044725430,0.319848,3126.4,3126.0,0.792]
[1732044725648,3.518438,3126.4,3126.0,0.792]
[1732044725871,3.19859,3126.4,3126.0,0.792]
[1732044726378,6.19836,3126.6,3126.0,0.792]
[1732044726541,6.19842,3126.6,3126.0,1.11189]
[1732044726738,0.939673,3126.5,3126.0,1.11189]
[1732044726960,3.0,3126.7,3126.1,0.31987]
[1732044727573,3.19824,3126.8,3126.1,0.31988]
[1732044728290,3.19831,3126.7,3126.1,0.31988]
[1732044728471,3.838015,3126.6,3126.0,0.792]
[1732044728775,6.39642,3126.8,3126.0,0.792]
[1732044728984,6.39642,3126.8,3126.1,0.31988]
[1732044729277,3.19836,3126.6,3126.0,0.792]
[1732044729450,6.19854,3126.5,3126.0,0.792]
[1732044729784,3.19857,3126.4,3126.0,0.792]
[1732044729988,3.0,3126.5,3126.0,0.792]
[1732044730167,0.619836,3126.4,3126.0,0.792]
[1732044730557,3.818456,3126.4,3126.0,0.792]
[1732044730741,3.19871,3126.3,3126.0,0.792]
[1732044730944,3.818456,3126.4,3126.0,0.792]
[1732044731238,3.0,3126.5,3126.0,0.792]
[1732044731672,6.19849,3126.5,3126.0,0.792]
[1732044732081,3.0,3126.5,3126.0,1.11189]
[1732044732288,3.0,3126.5,3126.0,0.792]
[1732044732289,0.939679,3126.4,3126.0,0.792]
[1732044732440,4.138269,3126.4,3126.0,0.792]
[1732044732640,3.19859,3126.4,3126.0,0.792]
[1732044733511,3.19878,3126.2,3126.0,0.792]
[1732044733683,3.19902,3126.0,3125.7,0.8078]
[1732044734076,3.19907,3125.9,3125.7,0.8078]
[1732044734297,3.19932,3125.7,3125.3,0.8078]
[1732044734510,0.319932,3125.7,3125.3,0.8078]
[1732044735572,3.36354,3126.3,3125.3,0.8078]
[1732044735774,3.0,3126.2,3125.7,0.7769]
[1732044736002,6.535184,3126.2,3125.7,0.7769]
[1732044736208,6.535184,3126.2,3125.7,1.09682]
[1732044736209,0.336354,3126.2,3125.7,1.09682]
[1732044736876,3.1648,3126.6,3125.9,0.3199]
[1732044736877,3.19851,3126.5,3125.9,0.3199]
[1732044737076,6.39728,3126.4,3125.7,1.09682]
[1732044737377,3.19877,3126.2,3125.7,0.7769]
[1732044738000,0.34416222,3126.5,3125.4,0.7909]
[1732044738001,6.39809,3126.0,3125.4,0.7909]
[1732044738205,3.19904,3126.0,3125.4,0.7909]
[1732044738409,3.19904,3126.0,3125.5,0.31994]
[1732044738410,3.19898,3126.0,3125.5,0.31994]
[1732044738712,3.19935,3125.7,3125.4,0.7909]
[1732044739014,6.39871,3125.7,3125.2,0.1405699]
[1732044739395,3.19935,3125.7,3125.2,0.1405699]
[1732044739621,3.19941,3125.6,3125.2,0.1405699]
[1732044739913,3.1994,3125.6,3125.2,0.1405699]
[1732044741119,3.0,3125.8,3125.2,0.4605399]
[1732044741414,3.19941,3125.6,3125.2,0.1405699]
[1732044741575,0.31648,3125.7,3125.2,0.4605399]
[1732044741781,0.31648,3125.7,3125.3,0.7835]
[1732044742589,0.31648,3125.7,3125.3,1.10346]
[1732044742791,0.1648,3126.2,3125.3,0.7835]
[1732044743120,6.39891,3125.6,3125.3,0.7835]
[1732044743486,0.1648,3126.2,3125.3,0.7835]
[1732044743487,3.19922,3125.8,3125.3,0.7835]
[1732044743691,0.319922,3125.7,3125.3,0.7835]
[1732044744015,3.1994,3125.6,3125.3,0.7835]
[1732044744180,0.319922,3125.7,3125.2,0.1405699]
[1732044744495,3.1996,3125.4,3125.2,0.1405699]
[1732044744883,3.1995,3125.5,3125.2,0.1405699]
[1732044745478,3.19966,3125.4,3125.2,0.1405699]
[1732044746330,3.19941,3125.6,3125.2,0.1405699]
[1732044746508,0.1648,3125.7,3125.2,0.1405699]
[1732044746509,0.336421,3125.5,3125.2,0.1405699]
[1732044746825,3.19945,3125.6,3125.2,0.1405699]
[1732044746996,6.36413,3125.7,3125.2,0.1405699]
[1732044747318,3.27738034,3126.2,3123.7,0.7835]
[1732044747319,0.01,3125.1,3123.7,0.7835]
[1732044747521,3.0,3124.8,3124.3,0.7835]
[1732044747689,0.1648,3125.3,3124.3,0.7835]
[1732044748092,3.0,3125.2,3124.4,0.32005]
[1732044748489,3.36437,3125.5,3124.8,0.7835]
[1732044748633,3.685056,3125.7,3124.8,0.7835]
[1732044748846,3.36413,3125.7,3125.0,0.31999]
[1732044749132,3.36413,3125.7,3124.8,1.10351]
[1732044749346,3.1995,3125.5,3124.8,0.7835]
[1732044749643,0.336413,3125.6,3124.9,0.32]
[1732044749941,3.36409,3125.7,3125.0,0.31999]
[1732044750157,3.0,3125.8,3125.3,0.31996]
[1732044750296,0.62783439,3125.8,3125.3,0.7961]
[1732044750736,0.62783439,3125.8,3125.3,1.11606]
[1732044750905,0.62783439,3125.8,3125.3,0.7961]
[1732044751115,3.58205544,3125.7,3125.1,0.31998]
[1732044751311,3.1994,3125.6,3125.0,1.11609]
[1732044751626,0.35820554,3125.6,3125.2,0.31997]
[1732044751946,0.38269544,3125.7,3125.4,0.31995]
[1732044752239,3.19855,3126.5,3124.4,0.32005]
[1732044752240,0.1648,3126.3,3125.8,0.7874]
[1732044752413,3.36348,3126.3,3125.8,0.7874]
[1732044752744,3.19849,3126.5,3125.9,0.3199]
[1732044753052,3.19849,3126.5,3125.8,0.7874]
[1732044753053,0.319841,3126.5,3126.1,0.31988]
[1732044753246,3.19817,3126.8,3126.1,0.31988]
[1732044753247,3.19829,3126.7,3126.1,0.31988]
[1732044753412,3.36293,3126.9,3126.1,0.31988]
[1732044753738,0.1648,3126.9,3126.3,0.31986]
[1732044753937,3.19786,3127.1,3126.4,0.7608]
[1732044754258,3.19786,3127.1,3126.5,0.31984]
[1732044754555,0.336266,3127.0,3126.5,0.31984]
[1732044754835,3.19745,3127.5,3126.9,0.3198]
[1732044755013,0.1648,3127.1,3126.1,0.31988]
[1732044755215,3.19782,3127.2,3126.5,0.31984]
[1732044755423,3.19782,3127.2,3126.6,0.31983]
[1732044755629,0.319782,3127.1,3126.6,0.31983]
[1732044755980,3.517642,3127.1,3126.4,0.31984]
[1732044756115,0.6715462,3127.0,3126.5,0.31984]
[1732044756313,3.19795,3127.0,3126.4,0.31984]
[1732044756526,3.19806,3126.9,3126.2,0.31986]
[1732044756703,3.517642,3127.1,3126.2,0.31986]
[1732044756704,0.3517642,3127.0,3126.2,0.31986]
[1732044756904,0.3517642,3127.0,3126.4,0.31985]
[1732044757105,3.19786,3127.1,3126.4,0.31985]
[1732044757106,0.35496242,3126.9,3126.4,0.31985]
[1732044757826,3.55303242,3126.9,3126.3,0.31986]
[1732044758033,0.35530324,3126.8,3126.4,0.31985]
[1732044758209,0.35496242,3126.9,3126.5,0.31984]
[1732044759448,0.35496242,3126.9,3126.1,0.7608]
[1732044759449,0.35496242,3126.9,3126.3,0.31986]
[1732044759772,0.35496242,3126.9,3126.4,0.31985]
[1732044760065,0.35529424,3126.8,3126.3,0.31986]
[1732044760235,0.35529424,3126.8,3126.3,0.31985]
[1732044760650,0.35529424,3126.8,3126.5,0.31984]
[1732044760844,3.19788,3127.1,3126.5,0.31984]
[1732044761042,3.19774,3127.2,3126.6,0.31983]
[1732044761281,0.319774,3127.1,3126.7,0.7716]
[1732044761559,3.19745,3127.5,3126.8,0.63961]
[1732044761767,3.5249829,3127.5,3126.8,0.3198]
[1732044762120,3.3275329,3127.5,3126.8,0.3198]
[1732044762359,0.3275329,3127.5,3126.7,0.7716]
[1732044762531,3.0,3127.6,3126.7,0.7716]
[1732044762729,3.0,3127.6,3127.0,0.31978]
[1732044763122,3.0,3127.7,3127.3,0.7948]
[1732044763493,0.336208,3127.6,3127.3,0.7948]
[1732044763865,0.336208,3127.6,3127.3,1.11456]
[1732044764371,0.336208,3127.6,3127.3,0.7948]
[1732044764535,3.1972,3127.8,3127.3,0.7948]
[1732044764859,3.19712,3127.9,3127.3,0.7948]
[1732044765066,0.319712,3127.8,3127.0,0.7948]
[1732044765234,3.36203,3127.7,3127.0,0.7948]
[1732044765427,0.1648,3127.7,3127.0,0.7948]
[1732044765627,3.36209,3127.7,3127.1,0.31978]
[1732044765829,0.336209,3127.6,3127.0,1.11458]
[1732044766029,3.19744,3127.5,3127.0,1.11458]
[1732044766333,3.19755,3127.4,3127.0,0.7948]
[1732044766660,0.639499,3127.3,3127.0,0.7948]
[1732044767274,0.336209,3127.6,3126.7,0.7909]
[1732044767480,3.1979,3127.1,3126.7,0.7909]
[1732044767674,0.31979,3127.0,3126.7,0.7909]
[1732044768115,0.31979,3127.0,3126.4,1.43059]
[1732044768403,3.19822,3126.8,3126.3,0.31986]
[1732044768569,3.19849,3126.5,3126.1,0.7909]
[1732044768904,3.19915,3125.9,3125.5,0.7909]
[1732044769104,3.518479,3126.4,3125.5,0.7909]
[1732044769105,0.319915,3125.8,3125.5,0.7909]
[1732044769403,3.1989,3126.1,3125.5,0.7909]
[1732044769622,3.1989,3126.1,3125.5,1.11083]
[1732044769910,3.1989,3126.1,3125.6,0.31993]
[1732044770258,3.19899,3126.0,3125.5,0.7909]
[1732044770488,0.31989,3126.0,3125.5,0.7909]
[1732044770655,3.19894,3126.1,3125.5,0.7909]
[1732044771085,6.39788,3126.1,3125.5,0.7909]
[1732044771285,3.0,3126.3,3125.5,0.7909]
[1732044771286,6.19871,3126.3,3125.5,0.7909]
[1732044771609,0.6518559,3126.2,3125.6,0.31993]
[1732044771759,3.19894,3126.1,3125.6,0.31993]
[1732044771964,3.19902,3126.0,3125.5,0.7909]
[1732044772281,0.639796,3125.9,3125.5,0.7909]
[1732044772688,3.8506959,3126.2,3125.6,0.31992]
[1732044772884,3.19897,3126.0,3125.5,0.7909]
[1732044773107,3.19897,3126.0,3125.5,1.11084]
[1732044773275,0.319897,3125.9,3125.5,0.7909]
[1732044773605,3.19929,3125.7,3125.5,0.7909]
[1732044773899,3.19929,3125.7,3125.2,0.7781]
[1732044774071,3.19941,3125.6,3125.2,0.7781]
[1732044774277,0.319941,3125.5,3125.2,1.09807]
[1732044774484,3.19925,3125.8,3125.2,1.09807]
[1732044774667,3.19931,3125.7,3125.2,1.09807]
[1732044774877,0.319931,3125.6,3124.7,0.7781]
[1732044775081,3.20036,3124.7,3124.4,0.7781]
[1732044775276,3.20042,3124.6,3124.1,0.7781]
[1732044775492,3.520572,3124.5,3124.1,0.7781]
[1732044775709,3.20062,3124.4,3124.1,0.7781]
[1732044775872,0.320042,3124.5,3124.1,0.7781]
[1732044776084,0.320042,3124.5,3123.8,1.14892]
[1732044776267,3.5527362,3124.4,3123.8,0.8288]
[1732044776462,0.3520462,3124.4,3124.0,0.3201]
[1732044776691,0.3520462,3124.4,3123.8,1.14891]
[1732044777112,3.2003,3124.8,3123.9,0.32011]
[1732044777283,3.0,3125.1,3123.8,1.14891]
[1732044777608,3.20068,3124.4,3123.8,0.8288]
[1732044777791,3.20041,3124.6,3123.8,1.14892]
[1732044777996,3.520551,3124.5,3123.8,0.8288]
[1732044778198,3.20065,3124.4,3123.8,0.8288]
[1732044778586,0.320041,3124.5,3123.8,1.14891]
[1732044778907,3.0,3124.7,3124.0,0.32009]
[1732044779111,3.0,3124.9,3124.2,0.32007]
[1732044779409,0.320018,3124.8,3124.3,0.32006]
[1732044779571,6.20001,3125.0,3124.1,0.32008]
[1732044779770,3.336472,3125.0,3124.1,0.32008]
[1732044779981,3.336472,3125.0,3124.3,0.32006]
[1732044780181,3.336472,3125.0,3123.8,1.14891]
[1732044780416,3.1648,3125.5,3124.6,0.32003]
[1732044780572,3.0,3125.3,3124.6,0.32003]
[1732044780771,0.1648,3125.5,3124.4,0.7701]
[1732044780772,3.1648,3125.5,3124.4,0.7701]
[1732044780967,3.84419593,3125.4,3124.7,0.32003]
[1732044781291,3.19985,3125.2,3124.4,0.7701]
[1732044781618,3.2,3125.0,3124.2,0.32007]
[1732044781770,3.20042,3124.6,3124.0,0.7701]
[1732044782380,3.20029,3124.8,3124.0,1.09019]
[1732044782778,3.20016,3124.9,3124.2,0.32007]
[1732044782979,6.2002,3124.8,3124.0,1.09019]
[1732044783180,6.2002,3124.8,3124.0,1.41028]
[1732044783376,3.2003,3124.7,3124.0,1.09019]
[1732044783576,4.14046,3124.6,3124.0,0.7701]
[1732044783776,3.20062,3124.4,3124.0,0.7701]
[1732044783985,3.20058,3124.5,3123.7,0.32012]
[1732044784189,0.320062,3124.3,3123.7,0.32012]
[1732044784394,3.20064,3124.4,3123.7,0.32012]
[1732044785584,3.20078,3124.3,3123.6,0.7701]
[1732044785896,3.520844,3124.3,3123.6,1.09023]
[1732044786282,0.320064,3124.3,3123.6,1.09023]
[1732044786622,3.20113,3123.9,3123.6,0.7701]
[1732044786799,3.20095,3124.1,3123.3,1.14406]
[1732044787000,3.20109,3124.0,3123.3,1.14406]
[1732044787216,3.20095,3124.1,3123.3,1.14406]
[1732044787217,3.20115,3123.9,3123.3,1.14406]
[1732044787526,0.320115,3123.8,3123.3,1.14406]
[1732044787931,3.521345,3123.8,3123.3,0.8239]
[1732044788399,0.320115,3123.8,3123.3,0.8239]
[1732044788598,0.320115,3123.8,3123.3,1.14407]
[1732044788921,3.5534565,3123.7,3123.3,0.8239]
[1732044789152,3.20119,3123.9,3123.3,0.8239]
[1732044789358,0.64676451,3124.4,3123.6,0.32013]
[1732044789359,3.0,3124.1,3123.6,0.32013]
[1732044789635,3.20087,3124.2,3123.6,0.32013]
[1732044789781,3.0,3124.3,3123.7,0.32012]
[1732044789987,3.320062,3124.3,3123.7,0.32012]
[1732044790186,0.1648,3124.2,3123.5,0.32015]
[1732044790421,0.3320062,3124.2,3123.5,0.32015]
[1732044790625,3.20096,3124.1,3123.5,0.32015]
[1732044790781,0.3320062,3124.2,3123.7,0.32013]
[1732044790981,3.28136843,3124.7,3123.8,0.7511]
[1732044791299,3.20037,3124.7,3123.9,0.3201]
[1732044791525,0.32813684,3124.6,3124.3,0.32006]
[1732044791828,3.19995,3125.1,3124.5,0.32004]
[1732044792028,0.411585,3125.1,3124.4,0.7511]
[1732044792186,3.20013,3124.9,3124.4,0.7511]
[1732044792385,3.20028,3124.8,3124.4,0.7511]
[1732044792801,3.19995,3125.1,3124.4,0.7511]
[1732044793001,3.520055,3125.0,3124.4,0.7511]
[1732044793202,3.520055,3125.0,3124.4,1.07115]
[1732044793562,3.20016,3124.9,3124.4,0.7511]
[1732044793746,0.319995,3125.0,3124.4,0.7511]
[1732044793747,3.20034,3124.7,3124.4,0.7511]
[1732044793887,3.2005,3124.6,3124.0,1.07119]
[1732044794091,0.32005,3124.5,3124.0,1.07119]
[1732044794731,0.32005,3124.5,3124.0,1.0712]
[1732044794903,0.32005,3124.5,3124.1,0.32008]
[1732044795099,3.20025,3124.8,3124.2,0.32007]
[1732044795296,0.320025,3124.7,3124.3,0.32006]
[1732044795824,0.320025,3124.7,3124.4,0.32005]
[1732044796041,3.0,3125.0,3124.5,0.7511]
[1732044796232,3.24340383,3125.4,3124.5,0.7511]
[1732044796396,3.24340383,3125.4,3124.5,1.07114]
[1732044796397,3.20001,3125.0,3124.5,1.07114]
[1732044797139,3.20047,3124.6,3124.1,0.7511]
[1732044797340,3.20047,3124.6,3124.1,1.07119]
[1732044797754,3.20014,3124.9,3124.1,0.7511]
[1732044797906,3.520214,3124.8,3124.2,0.32007]
[1732044798243,3.0,3125.0,3124.4,0.32005]
[1732044798446,3.0,3125.1,3124.6,0.8123]
[1732044798753,3.0,3125.1,3124.7,0.32002]
[1732044798754,0.29758251,3125.0,3124.7,0.32002]
[1732044798903,0.29758251,3124.9,3124.7,0.32002]
[1732044799233,0.9771,3125.9,3125.2,0.7657]
[1732044799437,3.19958,3125.5,3125.2,0.7657]
[1732044799618,0.29762511,3125.4,3125.2,0.7657]
[1732044799946,3.19958,3125.5,3125.2,0.7657]
[1732044800251,0.29762754,3125.4,3124.8,0.7657]
[1732044800540,3.1998,3125.2,3124.8,0.7657]
[1732044800747,3.19935,3125.7,3125.2,0.31997]
[1732044800964,0.63488027,3125.9,3125.5,0.31994]
[1732044801247,3.19877,3126.2,3125.6,0.7657]
[1732044801403,3.19887,3126.1,3125.6,0.7657]
[1732044801607,0.319887,3126.0,3125.6,0.7657]
[1732044802542,0.319887,3126.0,3125.6,1.08563]
[1732044802918,3.19858,3126.4,3125.7,0.31992]
[1732044803246,3.19858,3126.4,3125.8,0.31991]
[1732044803441,3.43678092,3126.3,3125.8,0.31991]
[1732044803652,0.23810092,3126.2,3125.7,0.31992]
[1732044803807,0.23810092,3126.1,3125.7,0.31992]
[1732044804149,0.23810092,3126.0,3125.8,0.31991]
[1732044804308,0.23810092,3125.9,3125.8,0.31991]
[1732044805743,0.23789003,3126.5,3126.1,0.8108]
[1732044805918,0.23789029,3126.4,3126.1,1.13068]
[1732044806119,3.19705,3127.9,3126.3,0.8108]
[1732044806334,0.01,3128.5,3126.7,0.8108]
[1732044806335,3.19693,3128.0,3126.7,0.8108]
[1732044806545,0.319693,3127.9,3127.4,0.8108]
[1732044806863,3.19652,3128.4,3127.7,0.31971]
[1732044807073,3.19669,3128.3,3127.7,0.31971]
[1732044807215,0.4026,3128.6,3127.5,1.30189126]
[1732044807554,3.19609,3128.9,3128.0,1.08949]
[1732044807860,3.19624,3128.7,3128.0,1.08949]
[1732044808055,0.319624,3128.6,3128.0,0.7698]
[1732044808367,3.19649,3128.5,3128.0,0.7698]
[1732044809316,0.319624,3128.6,3128.0,0.7698]
[1732044809523,3.19617,3128.8,3127.0,1.3745]
[1732044809758,3.19669,3128.3,3127.5,0.31974]
[1732044809955,6.39338,3128.3,3127.5,0.31974]
[1732044810158,3.19659,3128.4,3127.7,0.7623]
[1732044810355,0.319659,3128.3,3127.7,0.7623]
[1732044810823,3.516289,3128.3,3127.7,0.7623]
[1732044811747,0.319659,3128.3,3127.7,0.7623]
[1732044812673,3.19679,3128.2,3127.7,0.7623]
[1732044812845,3.19684,3128.1,3127.7,0.7623]
[1732044813177,0.319659,3128.3,3127.7,0.7623]
[1732044813178,0.639363,3128.0,3127.7,0.7623]
[1732044813475,3.1972,3127.8,3127.2,0.8305]
[1732044813632,0.31972,3127.7,3127.2,0.8305]
[1732044814258,0.31972,3127.7,3126.6,0.8305]
[1732044814442,3.19753,3127.5,3126.6,0.8305]
[1732044814656,3.19783,3127.2,3126.6,0.8305]
[1732044814972,3.19773,3127.3,3126.6,0.8305]
[1732044814973,3.837496,3127.1,3126.6,0.8305]
[1732044815143,3.19794,3127.1,3126.6,0.8305]
[1732044815343,6.39538,3127.3,3126.6,1.15033]
[1732044815544,0.639538,3127.2,3126.6,0.8305]
[1732044815762,3.19767,3127.3,3126.6,0.8305]
[1732044815963,3.19791,3127.1,3126.6,0.8305]
[1732044816175,3.19767,3127.3,3126.6,1.15033]
[1732044816492,0.4026,3127.6,3126.6,0.8305]
[1732044816493,3.19802,3127.0,3126.6,0.8305]
[1732044816653,0.319802,3126.9,3126.6,0.8305]
[1732044817081,3.517862,3126.9,3126.6,0.8305]
[1732044817375,3.19806,3126.9,3126.6,0.8305]
[1732044817582,3.19779,3127.2,3126.6,0.8305]
[1732044817738,3.19786,3127.1,3126.6,0.8305]
[1732044818384,3.19776,3127.2,3126.6,1.15033]
[1732044818542,0.319779,3127.1,3126.6,0.8305]
[1732044818882,3.19801,3127.0,3126.6,0.8305]
[1732044819075,3.5498989,3126.9,3126.6,0.8305]
[1732044819289,3.5498989,3126.9,3126.0,2.93]
[1732044819290,3.19826,3126.7,3126.0,2.93]
[1732044819438,3.19826,3126.7,3126.1,0.7773]
[1732044819646,3.19853,3126.5,3126.1,0.7773]
[1732044819839,3.1987,3126.3,3126.1,0.7773]
[1732044820284,3.19893,3126.1,3125.6,0.8254]
[1732044820484,3.199,3126.0,3125.6,0.8254]
[1732044820782,0.4026,3126.1,3124.5,0.8128]
[1732044820951,3.1998,3125.2,3124.6,0.32003]
[1732044821277,3.1997,3125.3,3124.7,0.32002]
[1732044821492,3.19948,3125.6,3124.8,0.32001]
[1732044821668,3.19966,3125.4,3124.7,0.32002]
[1732044821867,3.19974,3125.3,3124.7,0.32002]
[1732044822085,3.19979,3125.2,3124.5,1.45288]
[1732044822376,3.519626,3125.4,3124.6,0.32003]
[1732044822542,3.1998,3125.2,3124.5,0.8128]
[1732044823144,3.2001,3124.9,3124.5,0.8128]
[1732044823536,3.19991,3125.1,3124.5,0.8128]
[1732044823741,3.19972,3125.3,3124.5,0.8128]
[1732044823954,0.4026,3125.4,3124.5,0.8128]
[1732044824177,3.1999,3125.1,3124.5,0.8128]
[1732044824353,3.20055,3124.5,3124.1,0.8284]
[1732044824553,3.20058,3124.5,3124.1,0.8284]